Cogmind - Beta 16 @@@ ROGUE MODE // 2026.01.19 @ 22:12:06 Player: TheRose202 Result: Self-destructed Performance ------------- Evolutions (4) 2000 Regions Visited (6) 1200 Robots Destroyed (68) 340 Value Destroyed (1987) 1987 Prototype IDs (9) 180 Alien Tech Used (0) 0 Bonus (908) 908 TOTAL SCORE: 6615 Bonus ------- High Alert Combat Kills 36 Follower Combat Kills 383 Met Imprinter 300 Was Imprinted 300 Friendly Fire -111 Cogmind --------- Core Integrity 33/850 Matter 163/300 Energy 12/100 System Corruption 19% Temperature Cool (0) Movement Core (500) Ox9 Location -6/Factory Parts ------- > --- POWER (2) -------- (None) > --- PROPULSION (6) --- Advanced Myomer Leg > --- UTILITY (5) ------ Large Storage Unit Advanced Weight Redist. System Core Analyzer > --- WEAPON (2) ------- RU-N14's Throwing Claymores > --- INVENTORY (15) --- Gravmag System Phasing AFG Heavy Riot Gun Storm Laser Heavy Proton Cannon Enhanced Flamer Phasing Sabre PL-3XN's Ring of Power GAL Module Peak State ------------ > --- POWER ------------ Improved Deuterium Engine Light Angular Momentum Engine > --- PROPULSION ------- Flexi-carbon Leg Flexi-carbon Leg Advanced Myomer Leg Gravmag System Gravmag System Gravmag System > --- UTILITY ---------- Large Storage Unit Advanced Weight Redist. System Sensor Array Core Analyzer Force Field > --- WEAPON ----------- Coil Gun Enhanced Coil Gun > --- INVENTORY -------- Gravmag System Phasing AFG Heavy Riot Gun Storm Laser Heavy Proton Cannon Enhanced Flamer RU-N14's Throwing Claymores RU-N14's Throwing Claymores Phasing Sabre PL-3XN's Ring of Power GAL Module [Rating: 74] Favorites ----------- Power Heavy Ion Engine Engine Heavy Ion Engine Propulsion Titanium Leg Treads Light Treads Leg Titanium Leg Hover Unit Gravmag System Flight Unit Xenon Bombardment Thruster Utility Sensor Array Device Sensor Array Storage Large Storage Unit Processor Core Analyzer Protection Utility Shielding Weapon RU-N14's Throwing Claymores Energy Gun Plasma Rifle Energy Cannon Heavy Proton Cannon Ballistic Gun Improved Assault Rifle Ballistic Cannon Gauss Cannon Launcher Rocket Launcher Special Weapon RU-N14's Throwing Claymores Slashing Weapon Phasing Sabre Build | -11 -10 -9 -9 -7 -6 -6 ------- Run | Yrd Mat Mat Min Zio Pro Fac Slots Evolved 8 | . . 2 . . . 6 Power 1 | . . . . . . 1 Propulsion 4 | . . . . . . 4 Utility 3 | . . 2 . . . 1 Weapon . | . . . . . . . Parts Attached 85 | 6 15 19 1 13 4 27 Power 9 | 1 2 2 . . 1 3 Engine 9 | 1 2 2 . . 1 3 Core . | . . . . . . . Reactor . | . . . . . . . Propulsion 26 | 2 5 6 . 2 1 10 Treads 7 | 2 . 3 . 1 1 . Leg 13 | . 3 3 . 1 . 6 Wheel . | . . . . . . . Hover 3 | . . . . . . 3 Flight 3 | . 2 . . . . 1 Utility 18 | 1 2 4 1 5 . 5 Device 10 | . . 2 1 4 . 3 Storage 5 | 1 1 1 . 1 . 1 Processor 2 | . 1 . . . . 1 Hackware . | . . . . . . . Protection 1 | . . 1 . . . . Artifact . | . . . . . . . Weapon 32 | 2 6 7 . 6 2 9 Energy Gun 9 | . 2 2 . . 1 4 Energy Cannon 1 | . . . . . . 1 Ballistic Gun 11 | 2 2 5 . . . 2 Ballistic Cannon 3 | . 1 . . 2 . . Launcher 1 | . . . . 1 . . Special Weapon 6 | . 1 . . 2 1 2 Impact Weapon . | . . . . . . . Slashing Weapon 1 | . . . . 1 . . Piercing Weapon . | . . . . . . . Special Melee Weapon . | . . . . . . . Unidentified Prototypes 8 | . . 2 . 2 . 4 Corrupted Parts 2 | . . . . . . 2 System Corruption 13 | . . . . . . 13 Parts Lost 30 | . . 4 . . . 26 Power 5 | . . . . . . 5 Propulsion 13 | . . 2 . . . 11 Utility 5 | . . 2 . . . 3 Weapon 7 | . . . . . . 7 Highest Loss Streak 13 | . . 4 . . . 13 To Critical Strikes . | . . . . . . . Average Backups 7 | 2 6 7 7 7 10 7 Power . | . 1 1 1 . 1 . Propulsion 1 | 1 1 . 2 2 3 . Utility . | . 2 . . . . . Weapon 4 | . 1 5 4 4 6 6 Tool/Special . | . . . . . . . Unused Backups 16 | . 6 4 . 1 1 4 Power 2 | . 1 1 . . . . Propulsion 6 | . 2 1 . . . 3 Utility 4 | . 2 1 . . 1 . Weapon 3 | . . 1 . 1 . 1 Tool/Special 1 | . 1 . . . . . Average Slot Usage (%) 88 | . 89 93 99 100 98 59 Engine 9 | . 12 10 11 11 11 3 Treads 3 | . 4 11 . . 8 2 Leg 15 | . 21 8 22 21 13 8 Device 21 | . . 10 10 32 33 15 Storage 12 | . 14 20 22 11 11 6 Processor 2 | . 8 1 . . . 4 Protection 1 | . . 7 11 . . . Energy Gun 2 | . 5 1 . . 6 6 Ballistic Gun 5 | . 9 20 22 . . 1 Ballistic Cannon 3 | . 5 . . 5 8 . Special Weapon 7 | . 5 . . 15 5 2 Peak Build Rating 74 | 6 7 23 23 48 48 74 Average Rating 34 | 5 6 18 22 40 44 44 On Entrance 21 | . 6 7 23 23 47 45 Avg Prop Armor Cover (%) 9 | . . . . . . 9 Naked Turns . | . . . . . . . Heaviest Build 69 | 12 20 23 22 66 69 69 Greatest Support 100 | 40 40 40 34 34 48 100 Greatest Overweight (x) 18 | . 3 6 . 2 2 18 Average Overweight (x) . | . . . . . 1 2 Largest Inventory Capacity 15 | 8 10 10 8 15 15 15 Average Capacity 11 | 7 8 8 8 11 15 15 Most Carried 15 | 4 8 9 8 15 15 15 Average Carried 10 | 2 6 7 7 11 14 11 Final Capacity 15 | 8 10 8 8 15 15 15 Final Carried 15 | 4 7 8 8 15 15 12 Class Distribution -------------------- 50% | Mutant 46% | Derelict-Mutant Dominant Class ---------------- Mutant | -10/Materials Mutant | -9/Materials Mutant | -9/Mines Derelict-Mutant | -7/Zion Derelict-Mutant | -6/Proximity Caves Mutant | -6/Factory Resources | -11 -10 -9 -9 -7 -6 -6 ----------- Run | Yrd Mat Mat Min Zio Pro Fac Matter Collected 2206 | 199 413 593 61 160 288 492 Remotely . | . . . . . . . Salvage Created 2260 | . 448 1063 . . 182 567 Parts 134 | . 25 68 . . 8 33 Haulers Intercepted 3 | . 1 2 . . . . Recyclers Shooed 7 | . 2 3 . . . 2 Parts Field Recycled . | . . . . . . . Retrieved Matter . | . . . . . . . Parts Self-Destructed 11 | . . . . . 11 . Prevented 8 | . . . . . 8 . Parts Restored . | . . . . . . . Kills | -11 -10 -9 -9 -7 -6 -6 ------- Run | Yrd Mat Mat Min Zio Pro Fac Combat Hostiles Destroyed 43 | . 10 19 . . 3 11 Guns 27 | . 3 19 . . 1 4 Cannons 11 | . 7 . . . 1 3 AOE 4 | . . . . . 1 3 Classes Destroyed 16 | . 6 4 . . 3 3 Worker 7 | . . 2 . . . 5 Builder 2 | . . . . . . 2 Tunneler 1 | . 1 . . . . . Hauler 3 | . 1 2 . . . . Recycler 4 | . 2 2 . . . . Mechanic 1 | . . . . . . 1 Operator 1 | . . 1 . . . . Watcher 4 | . 1 3 . . . . Swarmer 12 | . 6 5 . . 1 . Grunt 14 | . 4 7 . . . 3 Duelist 2 | . . 1 . . 1 . Protector 1 | . . . . . . 1 Sentry 8 | . . 6 . . . 2 Programmer 5 | . . . . . 1 4 Behemoth 2 | . . . . . 1 1 Mutant 1 | . . . . . 1 . Best Kill Streak 13 | . 5 4 . . 1 13 Combat Bots Only 4 | . 4 3 . . 1 4 Max Kills in Single Turn 3 | . 1 2 . . 2 3 Gunslinging . | . . . . . . . Exploded 1 | . . . . . 1 1 Melee . | . . . . . . . Uniques/NPCs Destroyed . | . . . . . . . Combat | -11 -10 -9 -9 -7 -6 -6 -------- Run | Yrd Mat Mat Min Zio Pro Fac Hostile Shots Fired 524 | . 57 108 . . 59 300 Missed 184 | . 19 31 . . 20 114 Hits 340 | . 38 77 . . 39 186 Melee 9 | . . 9 . . . . Projectile 331 | . 38 68 . . 39 186 AOE 2 | . . . . . . 2 Critical Strikes 8 | . . 3 . . 1 4 Part Disruptions 1 | . . . . . . 1 Damage Taken 5850 | . 371 1106 . . 777 3596 Core 1289 | . 76 258 . . 138 817 Absorbed by Shields 30 | . . . . . . 30 Redirected to Shielding 10 | . . 10 . . . . Regen/Repaired (Parts) 436 | . . 114 . 260 . 62 Core Remaining (%) 56 | 100 69 . . . 1 . Volleys Fired 212 | . 55 70 . . 26 61 Largest 2 | . 2 2 . . 2 2 Hottest 155 | . 150 100 . . 140 155 Shots Fired 367 | . 88 140 . . 39 100 Gun 276 | . 50 140 . . 8 78 Cannon 63 | . 31 . . . 20 12 Launcher . | . . . . . . . Special 28 | . 7 . . . 11 10 Kinetic 253 | . 48 134 . . 20 51 Thermal 69 | . 40 . . . 6 23 Explosive 10 | . . . . . 5 5 Electromagnetic 35 | . . 6 . . 8 21 Robot Hit Streak 15 | . 4 15 . . 14 7 Robot Miss Streak 6 | . 3 4 . . 6 5 Penetration Max 1 | . . . . . . 1 Secondary Targets 1 | . . 1 . . . . Max Gunslinging Chain 1 | . . 1 . . . . Shots Hit Robots 224 | . 44 95 . . 23 62 Core Hits 118 | . 23 42 . . 14 39 Critical Kills 1 | . . . . . . 1 Critical Parts Destroyed 4 | . . . . . 2 2 Critical Strikes 13 | . 3 1 . . 4 5 Burn 3 | . 2 . . . . 1 Destroy 6 | . . . . . 3 3 Blast 2 | . 1 . . . . 1 Corrupt 1 | . . 1 . . . . Sever 1 | . . . . . 1 . Melee Attacks . | . . . . . . . Impact . | . . . . . . . Slashing . | . . . . . . . Piercing . | . . . . . . . Sneak Attacks . | . . . . . . . Combat Hostiles . | . . . . . . . Follow-up Attacks . | . . . . . . . Damage Inflicted 6613 | . 736 1569 2 . 813 3493 Guns 2966 | . 341 1500 . . 35 1090 Cannons 706 | . 316 . . . 222 168 Explosions 2417 | . . 64 . . 379 1974 Melee . | . . . . . . . Ramming 64 | . 55 5 2 . . 2 Kinetic 2932 | . 472 1430 . . 222 808 Thermal 799 | . 209 64 . . 135 391 Explosive 2285 | . . . . . 311 1974 Electromagnetic 220 | . . 70 . . 35 115 Impact . | . . . . . . . Slashing 313 | . . . . . 110 203 Piercing . | . . . . . . . Highest Corruption 19 | . . . . . . 19 Average Corruption 7 | . . . . . . 7 Corruption Purged . | . . . . . . . Corruption Blocked . | . . . . . . . Effects 49 | . . . . . . 49 Message Errors 6 | . . . . . . 6 Matter Fused 15 | . . . . . . 15 Heat Flow Errors 7 | . . . . . . 7 Energy Discharges 8 | . . . . . . 8 Parts Rejected 1 | . . . . . . 1 Data Loss (minor) 4 | . . . . . . 4 Data Loss (major) 2 | . . . . . . 2 Misfires 2 | . . . . . . 2 Alerts 2 | . . . . . . 2 Misdirections 1 | . . . . . . 1 Weapon Failures 1 | . . . . . . 1 Overload Shots . | . . . . . . . Overflow Damage 339 | . . . . . 4 335 Projectiles . | . . . . . . . Explosions 339 | . . . . . 4 335 Melee . | . . . . . . . Knockbacks 5 | . 4 . . . 1 . Impact 1 | . 1 . . . . . Kinetic 4 | . 3 . . . 1 . Secondary . | . . . . . . . Self-Inflicted Damage 446 | . . . . . 53 393 Shots 5 | . . . . . 1 4 Rammed 8 | . 1 7 . . . . Targets Rammed 20 | . 11 7 1 . . 1 Kicked 12 | . 10 . 1 . . 1 Crushed . | . . . . . . . Highest Temperature 320 | . 320 60 . . 10 230 Average Temperature 100 | . 136 12 . . 8 63 Received Heat Transfer 1098 | . 135 300 . . 117 546 Effects 3 | . 3 . . . . . Energy Bleed 2 | . 2 . . . . . Short Circuit 1 | . 1 . . . . . Siege Activations . | . . . . . . . Martial Activations . | . . . . . . . Shielding Activations . | . . . . . . . Robots Disrupted . | . . . . . . . Combat Hostiles . | . . . . . . . Robots Corrupted . | . . . . . . . Combat Hostiles . | . . . . . . . Parts Fried . | . . . . . . . Impact Corruptions . | . . . . . . . Robots Melted 1 | . . . . . . 1 Combat Hostiles 1 | . . . . . . 1 Parts Melted 5 | . 1 . . . . 4 Heat Transferred 2463 | . 753 50 . . 450 1210 Parts Sabotaged . | . . . . . . . Parts Stolen . | . . . . . . . Parts Stripped . | . . . . . . . Power Chain Reactions 2 | . . 1 . . 1 . Alert | -11 -10 -9 -9 -7 -6 -6 ------- Run | Yrd Mat Mat Min Zio Pro Fac Maximum Alert Level 2 | . . 1 . . . 2 Low Security (%) 98 | 100 100 96 100 . . 98 Level 1 1 | . . 3 . . . 1 Level 2 . | . . . . . . . Level 3 . | . . . . . . . Level 4 . | . . . . . . . Level 5 . | . . . . . . . High Security . | . . . . . . . Max Security . | . . . . . . . Peak Influence 437 | . 134 231 88 . . 437 Initial 88 | . . 48 88 . . . Average 31 | . 40 57 31 . . 11 Influence Increases 2190 | . 303 645 . . 451 791 Destroy 0b10 Robot/C 1060 | . 200 380 . . 280 200 Destroy 0b10 Robot/NC 120 | . 25 50 . . . 45 Destroy Leader 244 | . 34 120 . . 20 70 Allied During Kill 76 | . . . . . 76 . Successful Hack 40 | . 9 31 . . . . Disable Machine 360 | . 15 30 . . . 315 Destroy Structure 110 | . 5 4 . . . 101 Lose Combat Pursuer 180 | . 15 30 . . 75 60 Influence Decreases 1753 | . 188 533 227 . 451 354 Entered New Map 206 | . . 67 139 . . . Time Decay 1248 | . 188 436 88 . 371 165 Lost Part 219 | . . 30 . . . 189 Lost Ally 80 | . . . . . 80 . Squads Dispatched 11 | . 1 3 . . . 7 Investigation 2 | . . 2 . . . . Extermination 4 | . . . . . . 4 Reinforcement 4 | . 1 1 . . . 2 Assault . | . . . . . . . Garrison 1 | . . . . . . 1 Intercept . | . . . . . . . Searches Triggered . | . . . . . . . Construction Impeded 1 | . . . . . . 1 Haulers Reinforced . | . . . . . . . Active Scanning Responses . | . . . . . . . Cargo Convoy Interrupts 1 | . . . . . . 1 Stealth | -11 -10 -9 -9 -7 -6 -6 --------- Run | Yrd Mat Mat Min Zio Pro Fac Distress Signals 7 | . . 4 . . . 3 Communications Jammed . | . . . . . . . Distress Signals . | . . . . . . . Times Spotted 89 | . 19 28 . . 17 25 Peak Tracking Total 10 | . 6 4 . . 7 10 Tactical Retreats 8 | . 1 1 . . 4 2 Traps | -11 -10 -9 -9 -7 -6 -6 ------- Run | Yrd Mat Mat Min Zio Pro Fac Traps Triggered 6 | . 5 1 . . . . Indirectly . | . . . . . . . Trap Hack Attempts . | . . . . . . . Triggered . | . . . . . . . Disarmed . | . . . . . . . Reprogrammed . | . . . . . . . Reused . | . . . . . . . Traps Extracted . | . . . . . . . Installed . | . . . . . . . Triggered . | . . . . . . . Machines | -11 -10 -9 -9 -7 -6 -6 ---------- Run | Yrd Mat Mat Min Zio Pro Fac Machines Disabled 24 | . 1 2 . . . 21 Max in Single Turn 6 | . 1 1 . . . 6 Machines Repaired . | . . . . . . . Machines Dismantled . | . . . . . . . Machines Sabotaged . | . . . . . . . Overloaded Fab Kills . | . . . . . . . Hacking | -11 -10 -9 -9 -7 -6 -6 --------- Run | Yrd Mat Mat Min Zio Pro Fac Machines Accessed 19 | . 5 9 . 1 . 4 Terminals 10 | . 3 6 . . . 1 Fabricators . | . . . . . . . Repair Stations 2 | . . 1 . . . 1 Recycling Units 5 | . 2 1 . . . 2 Scanalyzers 1 | . . 1 . . . . Garrison Access . | . . . . . . . Total Hacks 61 | . 17 31 . 4 . 9 Successful 32 | . 11 13 . 4 . 4 Failed 29 | . 6 18 . . . 5 Catastrophic 3 | . . 2 . . . 1 Database Lockouts . | . . . . . . . Manual 1 | . . . . 1 . . Terminals 38 | . 10 24 . . . 4 Fabricators . | . . . . . . . Repair Stations 4 | . . 2 . . . 2 Recycling Units 12 | . 7 2 . . . 3 Scanalyzers 3 | . . 3 . . . . Garrison Access . | . . . . . . . Terminal Hacks 17 | . 5 7 . 4 . 1 Record 2 | . . 2 . . . . Part Schematic 4 | . . . . 4 . . Robot Analysis 2 | . 2 . . . . . Prototype ID Bank 1 | . . 1 . . . . Open DSF 1 | . . . . . . 1 Emergency Access Points 1 | . . 1 . . . . Terminal Index 1 | . . 1 . . . . Repair Station Index 1 | . . 1 . . . . Alert Level 1 | . . 1 . . . . Locate Traps 2 | . 2 . . . . . Hauler Manifests 1 | . 1 . . . . . Fabricator Hacks . | . . . . . . . Repair Station Hacks 4 | . . 2 . . . 2 Scan Component 2 | . . 1 . . . 1 Repair 2 | . . 1 . . . 1 Recycling Unit Hacks 8 | . 6 1 . . . 1 Recycle Component 1 | . 1 . . . . . Process 2 | . 2 . . . . . Report Inventory 3 | . 1 1 . . . 1 Retrieve Matter 1 | . 1 . . . . . Retrieve Components 1 | . 1 . . . . . Scanalyzer 3 | . . 3 . . . . Insert Component 1 | . . 1 . . . . Retrieve Study 2 | . . 2 . . . . Garrison Access Hacks . | . . . . . . . Unauthorized Hacks . | . . . . . . . Terminals . | . . . . . . . Fabricators . | . . . . . . . Repair Stations . | . . . . . . . Recycling Units . | . . . . . . . Scanalyzers . | . . . . . . . Garrison Access . | . . . . . . . Data Cores Recovered 1 | . . 1 . . . . Used . | . . . . . . . Hacking Detections 17 | . 5 8 . . . 4 Full Trace Events 3 | . . 3 . . . . Feedback Events . | . . . . . . . Feedback Blocked . | . . . . . . . Robot Schematics Acquired 3 | . . . . 3 . . Robots Built . | . . . . . . . Authchips . | . . . . . . . Time . | . . . . . . . Total Robot Build Rating . | . . . . . . . Part Schematics Acquired 19 | . . . . 19 . . Parts Built . | . . . . . . . Authchips . | . . . . . . . Time . | . . . . . . . Total Part Build Rating . | . . . . . . . Part Studies Acquired 2 | . . 2 . . . . Parts Repaired 2 | . . 1 . . . 1 Time 95 | . . 51 . . . 44 Parts Recycled 1 | . 1 . . . . . Recycled Matter 141 | . 141 . . . . . Retrieved Matter . | . . . . . . . Retrieved Components 1 | . 1 . . . . . Parts Scanalyzed . | . . . . . . . Part Schematics Acquired . | . . . . . . . Parts Damaged . | . . . . . . . Bothacking | -11 -10 -9 -9 -7 -6 -6 ------------ Run | Yrd Mat Mat Min Zio Pro Fac Used RIF Installer . | . . . . . . . Robots Hacked . | . . . . . . . Non-combat . | . . . . . . . Combat . | . . . . . . . Robot Hacks Applied . | . . . . . . . Relay Couplers Released . | . . . . . . . Fabnet Peak Effective % . | . . . . . . . Robots Rewired 2 | . . . . . 2 . Allies Hacked . | . . . . . . . Hacks Repelled . | . . . . . . . Allies | -11 -10 -9 -9 -7 -6 -6 -------- Run | Yrd Mat Mat Min Zio Pro Fac Total Allies 6 | . . . . 4 2 . Largest Group 6 | . . . . 4 6 . Highest-Rated Group 216 | . . . . 156 216 . Highest-Rated Ally 41 | . . . . 41 41 . Total Orders . | . . . . . . . Ally Attacks 44 | . . . . . 44 . Total Damage 1492 | . . . . . 1492 . Kills 11 | . . . . . 11 . Allies Corrupted . | . . . . . . . Allies Melted . | . . . . . . . Intel | -11 -10 -9 -9 -7 -6 -6 ------- Run | Yrd Mat Mat Min Zio Pro Fac Active Infowar (turns) 7091 | . . 1459 267 3542 1125 698 Sensors 5699 | . . 155 179 3542 1125 698 Seismic 1392 | . . 1304 88 . . . Jamming 3 | . . . . 3 . . Robot Analysis Total 2 | . 2 . . . . . Derelict Logs Recovered 1 | . . . . 1 . . Drone Launches . | . . . . . . . Drone Recoveries . | . . . . . . . Exploration | -11 -10 -9 -9 -7 -6 -6 ------------- Run | Yrd Mat Mat Min Zio Pro Fac Turns Passed 9551 | 133 918 1517 271 3542 1125 2045 Spaces Moved 4552 | 77 523 639 205 1983 452 673 Core 71 | 5 5 5 . . . 56 Treads 685 | 72 80 367 . 1 165 . Legs 3453 | . 402 267 205 1982 287 310 Wheels . | . . . . . . . Hover 265 | . . . . . . 265 Flight 78 | . 36 . . . . 42 Fastest Speed 37 | 50 37 120 130 130 200 116 Average Speed 181 | 152 125 164 130 173 227 254 Slowest Speed 950 | 160 200 350 130 360 270 950 Overloaded Moves . | . . . . . . . Propulsion Burnouts . | . . . . . . . Robots Hopped . | . . . . . . . Potential Cave-ins . | . . . . . . . Cave-ins Triggered . | . . . . . . . Exploration Rate (%) 50 | 6 71 56 66 90 53 12 Regions Visited 6 Branch Regions 3 Pre-discovered Areas 2 | . . . . 2 . . Known Exits Taken . | . . . . . . . Unknown Exits Taken 6 | 1 1 1 1 1 1 . Scrap Searched 5 | . . . 1 3 1 . Spaces Dug . | . . . . . . . Terrain Destroyed 177 | . 2 2 . . 60 113 Melee . | . . . . . . . Projectile 32 | . 2 . . . 11 19 AOE 145 | . . 2 . . 49 94 Terrain Rammed . | . . . . . . . Walls Destroyed . | . . . . . . . Machines Disabled . | . . . . . . . Actions | -11 -10 -9 -9 -7 -6 -6 --------- Run | Yrd Mat Mat Min Zio Pro Fac Total 5450 | 92 684 967 210 2088 505 904 Wait 334 | . 27 172 . 39 4 92 Move 4546 | 76 522 638 204 1982 451 673 Hop . | . . . . . . . Pick Up 134 | 10 29 33 2 25 5 30 Fast Attach . | . . . . . . . Attach 67 | 6 13 10 1 5 2 30 Detach 3 | . 1 . . . . 2 Swap 57 | . 11 15 . 16 7 8 Drop 70 | . 15 22 2 21 3 7 Fire 212 | . 55 70 . . 26 61 Melee . | . . . . . . . Ram . | . . . . . . . Kick 12 | . 10 . 1 . . 1 Crush 8 | . 1 7 . . . . Escape Stasis . | . . . . . . . Rewire 7 | . . . . . 7 . Trap . | . . . . . . . Miscellaneous . | . . . . . . . Route ------- -11/Scrapyard -10/Materials (discovered 3 exits: *Mat x2 / [*Sub]) -9/Materials (discovered 3 exits: [*Mat] / [*Min x2]) -9/Mines -7/Zion -6/Proximity Caves -6/Factory History --------- Turn | Location | Event 2 | -11/Scrapyard | Met Revision 17 5 | -11/Scrapyard | Discovered new exit (range 15) 134 | -11/Scrapyard | Entered Materials 135 | -10/Materials | Met a group of wandering Federalists 334 | -10/Materials | Build established: Mutant 595 | -10/Materials | Discovered new exit (range 12) 595 | -10/Materials | Discovered new exit (range 8) 972 | -10/Materials | Discovered new exit (range 14) 1052 | -10/Materials | Entered another Materials area 1052 | -9/Materials | Evolved 2 slots: Utility x2 1256 | -9/Materials | Lost 4 parts (2n2u) 1458 | -9/Materials | Discovered new exit (range 11) 1958 | -9/Materials | Repaired Imp. Assault Rifle 2026 | -9/Materials | Core integrity fell below 50% 2197 | -9/Materials | Discovered new exit (range 13) 2496 | -9/Materials | Discovered new exit (range 13) 2569 | -9/Materials | Entered Mines 2591 | -9/Mines | Met a Derelict bent on vengeance 2793 | -9/Mines | Found a hidden stash of uninstalled traps 2832 | -9/Mines | A Derelict revealed a hidden shortcut to a safe place 2840 | -9/Mines | Entered Zion 2885 | -7/Zion | Found GAL Module 3213 | -7/Zion | Found Prototype Special Weapon 3214 | -7/Zion | Identified RU-N14's Throwing Claymores 3218 | -7/Zion | Found RU-N14's Throwing Claymores 3237 | -7/Zion | Build established: Derelict-Mutant 3294 | -7/Zion | Learned location of Warlord (-5) 3459 | -7/Zion | Learned Factory emergency access door positions 3630 | -7/Zion | Given A8's code to call for help 3763 | -7/Zion | Found Prototype Energy Gun 3867 | -7/Zion | Found Prototype Device 3868 | -7/Zion | Identified Phasing AFG 4176 | -7/Zion | Build established: Mutant 4670 | -7/Zion | Build established: Derelict-Mutant 4670 | -7/Zion | Discovered new exit (range 16) 4748 | -7/Zion | Visited the Megawrench Repair Shop 4748 | -7/Zion | Megawrench repaired 6 parts 5308 | -7/Zion | Met Imprinter 5377 | -7/Zion | Imprinted 5379 | -7/Zion | Declared Zion's savior 5745 | -7/Zion | Found RU-N14's Throwing Claymores 5748 | -7/Zion | Found RU-N14's Throwing Claymores 6382 | -7/Zion | Entered Proximity Caves 6382 | -6/Proximity Caves | Accompanied by 4 allies 6384 | -6/Proximity Caves | Attracted the attention of an 0b10 outpost 6497 | -6/Proximity Caves | Spotted B-75 Beast 6524 | -6/Proximity Caves | Destroyed B-75 Beast 6555 | -6/Proximity Caves | Lost 4 allies 6672 | -6/Proximity Caves | Core integrity fell below 20% 7482 | -6/Proximity Caves | Discovered new exit (range 10) 7507 | -6/Proximity Caves | Entered Factory 7507 | -6/Factory | Evolved 6 slots: Power x1, Propulsion x4, Utility x1 7604 | -6/Factory | Repaired Hvy. Riot Gun 7800 | -6/Factory | Spotted B-75 Beast 7891 | -6/Factory | Destroyed B-75 Beast 7919 | -6/Factory | Lost 13 parts (2p5n2u4w) 8144 | -6/Factory | Build established: Mutant 8717 | -6/Factory | Cargo convoy interrupted 8980 | -6/Factory | Terminal network hard line cut 9210 | -6/Factory | System corruption reached 10% 9212 | -6/Factory | Found PL-3XN's Ring of Power 9469 | -6/Factory | Core integrity fell below 50% 9485 | -6/Factory | Lost 4 parts (1p3n) 9501 | -6/Factory | Garrison activated, responded to threat 9547 | -6/Factory | Core integrity fell below 20% 9552 | -6/Factory | Self-destructed Last Messages --------------- Slug penetrates Terminal. Enh. Coil Gun destroyed. Slug penetrates Wall. Coil Gun destroyed. Sensor Array destroyed. Penetrated by Slug. K-01 Serf destroyed. Imp. Deuterium Engine destroyed. Slug penetrates Wall. RU-N14's Throwing Claymores expended. Y-54 Guardian destroyed. Destroyed Phase Shifter. Terminal disabled. G-50 Soldier destroyed. Destroyed Carbon-fiber Leg. Slug penetrates Wall. System corrupted: Matter fused (-7). Flexi-carbon Leg destroyed. G-50 Soldier destroyed. R-10 Processor collects Shock Rifle. Map ----- +----------------------------------------------------+ | ???????????????????? #??????????????????????? ? | | ???????????????????? #??????????????????????? ? | | ???????????????????? #???????????????????????" " | | ???????????????????? #??????????????????????"" " | | ??????????"????????? #??????????????????????"" " | | ??????????" ???????# #??????????????????????? | | ??????????? ??????# ##??????????????????????? | | ?????????####+###### "#########+##############+" | | ?????????? | | ??????????? | | ???????????"" | | ????????????? " ?? | | ???????????????? % ???? !! | | ????????? ##+;;#####???##########+### ! | | ????????? =%= R= ##### # ! | | ????????? !""" " + """"""" # | | ???????????? *""" h ### """"""" # " | | ??????????? """ ?# """"""" # """ | | ?????????? ??# """"""" # | | ?????????? " ??# # | | ?????????? h = ???# """"""" # | | ?????????????? ####### % ???# """""?? # | | ?????????????? ????????# Y ????# """""???# | | ???????????????????????? = ????# """?????# | | ????????????????????????#%#????# ?????# | | ????????????????????????#@#????# ! ! ??????# | | ????????????????????????#/#????#######??????# | | ???????????????????????? ?????????????????? ??? | | ???????????????????????? "??????????????????????? | | ??????????????????????? ""?????????????????????? | | ??????????????????????? ""?????????????????????? | | ??????????????????????# g"""????????????????????? | | ??????????????????????#g% ?????????????????????? | | ??????????????????????#####??????????????????????? | | ?????????????????????????????????????????????????? | | ?????????????????????????????????????????????????? | | ?????????????????????????????????????????????????? | | ?????????????????????????????????????????????????? | | ?????????????????????????????????????????????????? | | ?????????????????????????????????????????????????? | | ?????????????????????????????????????????????????? | | ?????????????????????????????????????????????????? | | ?????????????????????????????????????????????????? | | ?????????????????????????????????????????????????? | | ?????????????????????????????????????????????????? | | ?????????????????????????????????????????????????? | | ?????????????????????????????????????????????????? | | ?????????????????????????????????????????????????? | | ?????????????????????????????????????????????????? | | ?????????????????????????????????????????????????? | +----------------------------------------------------+ Best States ------------- Heat Dissipation 64 Energy Generation 29 Energy Capacity 690 Matter Stores 300 Matter Capacity 300 Sight Range 16 Robot Scan Range 14 Terrain Scan Density 10 Additional Mass Support 9 Utility Shielding 33 Evasion (%) 55 Targeting Accuracy 5 Core Analysis 6 Recoil Reduction 2 Item Schematics ----------------- Thermic Laser | -7/Zion | Archive Lightning Gun | -7/Zion | Archive Imp. System Shield | -7/Zion | Archive Plasma Cannon | -7/Zion | Archive Lrn. Tractor Beam | -7/Zion | Archive Arm. Medium Treads | -7/Zion | Archive Gatling Laser | -7/Zion | Archive Adv. Melee Analysis Suite | -7/Zion | Archive Hvy. Ion Cannon | -7/Zion | Archive Nuclear Pulse Thruster | -7/Zion | Archive Med. Treads | -7/Zion | Archive Enh. Optical Array | -7/Zion | Archive Weapon Cycler | -7/Zion | Archive Matter Filter | -7/Zion | Archive Hvy. Pick | -7/Zion | Archive Riot Gun | -7/Zion | Free Barrage Gun | -7/Zion | Free Ripper | -7/Zion | Free Tactical Coordination Suite | -7/Zion | Free Robot Schematics ------------------ R-06 Scavenger | -7/Zion | Archive X-57 Shotgunner | -7/Zion | Archive K-01 Serf | -7/Zion | Archive Fabricated ------------ Nothing Repaired ---------- Imp. Assault Rifle | 18% | -9/Materials Hvy. Riot Gun | 4% | -6/Factory Studied --------- Rocket Launcher | -9/Materials | Hacked Mni. Grenade Launcher | -9/Materials | Hacked Alien Tech Used ----------------- None Achievements -------------- A New Friend A Problem For Future Me Backstab Hydra I'm Back, Baby! Jackpot Robot Respite System Compromised The More The Merrier The One Tourist Challenges ------------ None Game ------ Seed WeaponsMiningMace Manual? 0 Play Time 01:31:21 Cumulative 5.9 hours Start 2026.01.19 @ 20:31:42 End 2026.01.19 @ 22:12:06 Sessions 1 Manual Loads 0 Difficulty Rogue Special Mode None Game No. 3 Rogue 2 Adventurer 1 Explorer 0 Win Type - Total 0 Types 0/0/0/0/0/0/0/0/0/0 Lore% 4 Gallery% 12 Achievement% 11 Wizard Run 0 Options --------- Layout 1 ASCII 0 Keyboard 0 Movement Numpad Keybinds 0 Fullscreen 1 Font 24/Smallcaps Map View 50x35 Zoom Use 0% Tactical HUD 0 Map Filters NONE Filters NONE Steam 1 RUN: 870c70a7-800e-4869-aa7e-04ad36e28e53